Cogmind - Beta 13 @@@ ROGUE MODE // 2024.07.06 @ 01:18:27 Player: asta Result: Destroyed by L-31 Rogue with Katana Performance ------------- Evolutions (1) 500 Regions Visited (2) 400 Robots Destroyed (24) 120 Value Destroyed (641) 641 Prototype IDs (0) 0 Alien Tech Used (0) 0 Bonus (0) 0 TOTAL SCORE: 1661 Bonus ------- None Cogmind --------- Core Integrity 0/400 Matter 300/300 Energy 100/100 System Corruption 3% Temperature Cool (0) Movement Core (50) Location -9/Materials Parts ------- > --- POWER (1) -------- (None) > --- PROPULSION (3) --- (None) > --- UTILITY (3) ------ (None) > --- WEAPON (2) ------- (None) > --- INVENTORY (5) ---- Light Ion Engine Peak State ------------ > --- POWER ------------ Ion Engine > --- PROPULSION ------- Light Treads Light Treads > --- UTILITY ---------- Small Storage Unit Improved Terrain Scanner > --- WEAPON ----------- EM Pulse Gun Light Assault Rifle > --- INVENTORY -------- (None) [Rating: 9] Favorites ----------- Power Ion Engine Engine Ion Engine Propulsion Light Treads Treads Light Treads Hover Unit Hover Unit Utility Targeting Computer Device Improved Terrain Scanner Storage Large Storage Unit Processor Targeting Computer Weapon Grenade Launcher Energy Gun EM Pulse Gun Ballistic Gun Light Assault Rifle Launcher Grenade Launcher Special Weapon Welding Torch Build | -11 -10 -9 ------- Run | Yrd Mat Mat Slots Evolved 2 | . . 2 Power . | . . . Propulsion 1 | . . 1 Utility 1 | . . 1 Weapon . | . . . Parts Attached 21 | 7 11 3 Power 2 | 1 . 1 Engine 2 | 1 . 1 Core . | . . . Reactor . | . . . Propulsion 6 | 2 4 . Treads 4 | 2 2 . Leg . | . . . Wheel . | . . . Hover 2 | . 2 . Flight . | . . . Utility 7 | 2 4 1 Device 3 | 1 1 1 Storage 3 | 1 2 . Processor 1 | . 1 . Hackware . | . . . Protection . | . . . Artifact . | . . . Weapon 6 | 2 3 1 Energy Gun 1 | 1 . . Energy Cannon . | . . . Ballistic Gun 2 | 1 . 1 Ballistic Cannon . | . . . Launcher 2 | . 2 . Special Weapon 1 | . 1 . Impact Weapon . | . . . Slashing Weapon . | . . . Piercing Weapon . | . . . Special Melee Weapon . | . . . Unidentified Prototypes . | . . . Parts Lost 11 | . 4 7 Power 2 | . 1 1 Propulsion 3 | . 1 2 Utility 3 | . 1 2 Weapon 3 | . 1 2 Highest Loss Streak 6 | . 2 6 To Critical Strikes . | . . . Average Slot Usage (%) 85 | . 91 55 Engine 9 | . 9 7 Treads 23 | . 23 18 Hover 3 | . 3 . Device 11 | . 12 7 Storage 5 | . 6 . Processor 7 | . 7 10 Ballistic Gun 7 | . 6 7 Launcher 12 | . 14 3 Special Weapon 2 | . 3 . Naked Turns 10 | . . 10 Heaviest Build 30 | 14 30 12 Greatest Support 40 | 40 40 40 Greatest Overweight (x) 1 | 1 . . Average Overweight (x) . | . . . Largest Inventory Capacity 15 | 8 15 5 Average Capacity 7 | 6 8 5 Most Carried 5 | 1 5 3 Average Carried 1 | . 2 . Final Capacity 8 | 8 5 5 Final Carried 2 | . 2 1 Class Distribution -------------------- 100% | Mutant Dominant Class ---------------- Mutant | -10/Materials Mutant | -9/Materials Resources | -11 -10 -9 ----------- Run | Yrd Mat Mat Matter Collected 661 | 110 362 189 Remotely . | . . . Salvage Created 532 | 30 285 217 Parts 39 | 5 23 11 Haulers Intercepted 1 | . 1 . Recyclers Shooed 1 | . . 1 Parts Field Recycled . | . . . Retrieved Matter . | . . . Parts Self-Destructed . | . . . Prevented . | . . . Kills | -11 -10 -9 ------- Run | Yrd Mat Mat Combat Hostiles Destroyed 16 | . 13 3 Melee 3 | . . 3 AOE 13 | . 13 . Classes Destroyed 8 | 1 6 1 Builder 2 | . 2 . Tunneler 1 | 1 . . Hauler 1 | . 1 . Recycler 1 | . . 1 Operator 1 | . 1 . Watcher 2 | . 2 . Swarmer 3 | . 3 . Grunt 13 | . 10 3 Best Kill Streak 6 | 1 6 2 Combat Bots Only 6 | . 6 2 Max Kills in Single Turn 2 | 1 2 1 Gunslinging . | . . . Exploded 1 | . 1 . Melee 1 | . . 1 Uniques/NPCs Destroyed . | . . . Combat | -11 -10 -9 -------- Run | Yrd Mat Mat Hostile Shots Fired 97 | . 38 59 Missed 24 | . 10 14 Damage Taken 1247 | . 406 841 Core 469 | . 57 412 Absorbed by Shields . | . . . Core Remaining (%) 88 | 100 77 . Volleys Fired 55 | 2 34 19 Largest 2 | 2 2 2 Hottest 60 | 60 60 53 Shots Fired 75 | 4 51 20 Gun 42 | 4 19 19 Cannon . | . . . Launcher 32 | . 31 1 Special 1 | . 1 . Kinetic 40 | 2 19 19 Thermal 1 | . 1 . Explosive 32 | . 31 1 Electromagnetic 2 | 2 . . Robot Hit Streak 9 | 3 9 3 Robot Miss Streak 5 | . 5 3 Penetration Max . | . . . Secondary Targets . | . . . Shots Hit Robots 40 | 3 29 8 Core Hits 52 | 1 34 17 Critical Kills . | . . . Critical Parts Destroyed . | . . . Critical Strikes . | . . . Melee Attacks . | . . . Impact . | . . . Slashing . | . . . Piercing . | . . . Sneak Attacks . | . . . Combat Hostiles . | . . . Follow-up Attacks . | . . . Damage Inflicted 1393 | 32 1123 238 Guns 235 | 32 72 131 Cannons . | . . . Explosions 1079 | . 1048 31 Melee . | . . . Ramming 79 | . 3 76 Kinetic 222 | 19 72 131 Thermal . | . . . Explosive 1079 | . 1048 31 Electromagnetic 13 | 13 . . Impact . | . . . Slashing . | . . . Piercing . | . . . Highest Corruption 3 | . . 3 Average Corruption 2 | . . 2 Corruption Purged . | . . . Corruption Blocked . | . . . Overload Shots . | . . . Overflow Damage 37 | . 29 8 Projectiles . | . . . Explosions 37 | . 29 8 Melee . | . . . Knockbacks . | . . . Impact . | . . . Kinetic . | . . . Secondary . | . . . Self-Inflicted Damage 186 | . 121 65 Shots 6 | . 5 1 Rammed 33 | . 2 31 Targets Rammed 34 | . 2 32 Kicked . | . . . Crushed 1 | . . 1 Highest Temperature 43 | 20 43 . Average Temperature 12 | 15 12 . Received Heat Transfer 339 | . 144 195 Siege Activations . | . . . Robots Corrupted . | . . . Combat Hostiles . | . . . Parts Fried . | . . . Impact Corruptions . | . . . Robots Melted . | . . . Combat Hostiles . | . . . Parts Melted . | . . . Heat Transferred . | . . . Parts Sabotaged . | . . . Parts Stolen . | . . . Parts Stripped . | . . . Power Chain Reactions . | . . . Alert | -11 -10 -9 ------- Run | Yrd Mat Mat Peak Influence 355 | 5 355 149 Initial 101 | . 3 101 Average 129 | 2 142 109 Maximum Alert Level 1 | . 1 . Low Security (%) 69 | 100 60 100 Level 1 30 | . 39 . Level 2 . | . . . Level 3 . | . . . Level 4 . | . . . Level 5 . | . . . High Security . | . . . Max Security . | . . . Squads Dispatched 3 | . 3 . Investigation 3 | . 3 . Extermination . | . . . Reinforcement . | . . . Assault . | . . . Garrison . | . . . Intercept . | . . . Searches Triggered . | . . . Construction Impeded . | . . . Haulers Reinforced . | . . . Active Scanning Responses . | . . . Cargo Convoy Interrupts . | . . . Stealth | -11 -10 -9 --------- Run | Yrd Mat Mat Distress Signals 3 | . 2 1 Communications Jammed . | . . . Distress Signals . | . . . Times Spotted 22 | . 16 6 Peak Tracking Total 6 | . 4 6 Tactical Retreats . | . . . Traps | -11 -10 -9 ------- Run | Yrd Mat Mat Traps Triggered 1 | . 1 . Indirectly . | . . . Trap Hack Attempts . | . . . Triggered . | . . . Disarmed . | . . . Reprogrammed . | . . . Reused . | . . . Traps Extracted . | . . . Installed . | . . . Triggered . | . . . Machines | -11 -10 -9 ---------- Run | Yrd Mat Mat Machines Disabled 7 | . 7 . Max in Single Turn 2 | . 2 . Machines Repaired . | . . . Machines Dismantled . | . . . Machines Sabotaged . | . . . Overloaded Fab Kills . | . . . Hacking | -11 -10 -9 --------- Run | Yrd Mat Mat Machines Accessed 4 | . 4 . Terminals 3 | . 3 . Fabricators . | . . . Repair Stations . | . . . Recycling Units 1 | . 1 . Scanalyzers . | . . . Garrison Access . | . . . Total Hacks 10 | . 10 . Successful 6 | . 6 . Failed 4 | . 4 . Catastrophic . | . . . Database Lockouts . | . . . Manual . | . . . Terminals 7 | . 7 . Fabricators . | . . . Repair Stations . | . . . Recycling Units 3 | . 3 . Scanalyzers . | . . . Garrison Access . | . . . Terminal Hacks 4 | . 4 . Record 4 | . 4 . Fabricator Hacks . | . . . Repair Station Hacks . | . . . Recycling Unit Hacks 2 | . 2 . Report Inventory 1 | . 1 . Retrieve Components 1 | . 1 . Scanalyzer . | . . . Garrison Access Hacks . | . . . Unauthorized Hacks . | . . . Terminals . | . . . Fabricators . | . . . Repair Stations . | . . . Recycling Units . | . . . Scanalyzers . | . . . Garrison Access . | . . . Data Cores Recovered . | . . . Used . | . . . Hacking Detections 4 | . 4 . Full Trace Events 3 | . 3 . Feedback Events . | . . . Feedback Blocked . | . . . Robot Schematics Acquired . | . . . Robots Built . | . . . Authchips . | . . . Time . | . . . Total Robot Build Rating . | . . . Part Schematics Acquired . | . . . Parts Built . | . . . Authchips . | . . . Time . | . . . Total Part Build Rating . | . . . Parts Repaired . | . . . Time . | . . . Parts Recycled . | . . . Recycled Matter . | . . . Retrieved Matter . | . . . Retrieved Components 8 | . 8 . Parts Scanalyzed . | . . . Part Schematics Acquired . | . . . Parts Damaged . | . . . Bothacking | -11 -10 -9 ------------ Run | Yrd Mat Mat Used RIF Installer . | . . . Robots Hacked . | . . . Non-combat . | . . . Combat . | . . . Robot Hacks Applied . | . . . Relay Couplers Released . | . . . Fabnet Peak Effective % . | . . . Robots Rewired . | . . . Allies Hacked . | . . . Hacks Repelled . | . . . Allies | -11 -10 -9 -------- Run | Yrd Mat Mat Total Allies . | . . . Largest Group . | . . . Highest-Rated Group . | . . . Highest-Rated Ally . | . . . Total Orders . | . . . Ally Attacks . | . . . Total Damage . | . . . Kills . | . . . Allies Corrupted . | . . . Allies Melted . | . . . Intel | -11 -10 -9 ------- Run | Yrd Mat Mat Robot Analysis Total . | . . . Derelict Logs Recovered . | . . . Drone Launches . | . . . Drone Recoveries . | . . . Exploration | -11 -10 -9 ------------- Run | Yrd Mat Mat Turns Passed 1175 | 68 923 184 Spaces Moved 638 | 38 534 66 Core 14 | 8 . 6 Treads 522 | 30 432 60 Legs . | . . . Wheels . | . . . Hover 102 | . 102 . Flight . | . . . Fastest Speed 50 | 50 56 50 Average Speed 141 | 138 140 150 Slowest Speed 160 | 160 160 160 Overloaded Moves . | . . . Propulsion Burnouts . | . . . Robots Hopped . | . . . Cave-ins Triggered . | . . . Exploration Rate (%) 26 | 5 72 3 Regions Visited 2 Branch Regions . Pre-discovered Areas . | . . . Known Exits Taken . | . . . Unknown Exits Taken 2 | 1 1 . Scrap Searched . | . . . Spaces Dug . | . . . Terrain Destroyed 125 | . 117 8 Melee . | . . . Projectile . | . . . AOE 125 | . 117 8 Terrain Rammed . | . . . Walls Destroyed . | . . . Machines Disabled . | . . . Actions | -11 -10 -9 --------- Run | Yrd Mat Mat Total 832 | 47 661 124 Wait 56 | . 56 . Move 636 | 37 533 66 Hop . | . . . Pick Up 18 | 1 14 3 Fast Attach 6 | 6 . . Attach 7 | 1 3 3 Detach . | . . . Swap 8 | . 8 . Drop 12 | . 11 1 Fire 55 | 2 34 19 Melee . | . . . Ram 21 | . . 21 Kick . | . . . Crush 13 | . 2 11 Escape Stasis . | . . . Rewire . | . . . Trap . | . . . Miscellaneous . | . . . Route ------- -11/Scrapyard -10/Materials (discovered 2 exits: [*Mat x2]) -9/Materials History --------- Turn | Location | Event 4 | -11/Scrapyard | Discovered new exit (range 15) 69 | -11/Scrapyard | Entered Materials 302 | -10/Materials | Build established: Mutant 315 | -10/Materials | Discovered new exit (range 3) 500 | -10/Materials | Discovered new exit (range 9) 992 | -10/Materials | Entered another Materials area 992 | -9/Materials | Evolved 2 slots: Propulsion x1, Utility x1 1161 | -9/Materials | Core integrity fell below 50% 1168 | -9/Materials | Core integrity fell below 20% 1176 | -9/Materials | Destroyed by L-31 Rogue with Katana Last Messages --------------- Destabilizing: Core damaged (-16). Slammed into G-34 Mercenary. Slammed into L-31 Rogue. Targeting Computer broken. Destabilizing: Short circuit. Slammed into L-31 Rogue. Broken Targeting Computer destroyed. System corrupted by crushing effect (+1). Slammed into G-34 Mercenary. G-34 Mercenary destroyed. [Achievement: Fist Fight] Acquired 50 matter. Slammed into G-34 Mercenary. Acquired 22 matter. Slammed into G-34 Mercenary. Destabilizing: Core damaged (-4). R-06 Scavenger collects Com. Wheel. Slammed into G-34 Mercenary. G-34 Mercenary destroyed. Slammed into L-31 Rogue. Map ----- +----------------------------------------------------+ | | | ???????????????????????????????????????? | | ???????????????????????????????????????? | | ???????????????????????????????????????? | | ???????????????????????????????????????? | | ???????????????????????????????????????? | | ???????????????????????????????????????? | | ???????????????????????????????????????? | | ???????????????????????????????????????? | | ???????????????????????????????????????? | | ???????????????????????????????????????? | | ???????????????????????????????????????? | | ???????????????????????????????????????? | | ???????????????????????????????????????? | | ???????????????????????????????????????? | | ???????????????????????????????????????? | | ???????????????????????????????????????? | | ???????????????????????????????????????? | | ???????????????????????????????????????? | | ???????????????????????????????????????? | | ???????????????????????????????????????? | | ???????????????????????#####???????????? | | ???????????????????????# ###########?? | | ???????????????????????# *=# #?? | | ???????????????????????#=%[# #?? | | ???????????????????????# @[# = #?? | | ???????????????????????#%l*# #?? | | ???????????????????????#%[ + """ """ #?? | | ???????????????????????#!%!# """ """ #?? | | ???????????????????????### # """ """ #?? | | ????????????????????????##!# #?? | | ????????????????????????##r###########?? | | ????????????????????????## ##??????????? | | ????????????????????????## ##??????????? | | ????????????????????????## ##??????????? | | ????????# ########## #??????????? | | ???? #??????????? | | ???????????##/######## ## #??????????? | | ?????????????????????# ######??????????? | | ?????????????????????# #???????????????? | | ?????????????????????# #???????????????? | | ?????????????????????# #???????????????? | | ?????????????????????# #???????????????? | | ?????????????????????# #???????????????? | | ?????????????????????# #???????????????? | | ??????????????????????%????????????????? | | ?????????????????????? ????????????????? | | ?????????????????????? ????????????????? | | ?????????????????????? ????????????????? | | ?????????????????????? ????????????????? | +----------------------------------------------------+ Best States ------------- Heat Dissipation 28 Energy Generation 10 Energy Capacity 250 Matter Stores 278 Matter Capacity 300 Sight Range 16 Robot Scan Range 14 Terrain Scan Range 16 Terrain Scan Density 10 Evasion (%) 53 Targeting Accuracy 5 Recoil Reduction 2 Item Schematics ----------------- None Robot Schematics ------------------ None Fabricated ------------ Nothing Alien Tech Used ----------------- None Achievements -------------- Fist Fight Oops Storm Trooper Challenges ------------ None Game ------ Seed StructuralBattleShredder Manual? 0 Play Time 00:15:24 Cumulative 2.9 hours Start 2024.07.06 @ 01:04:16 End 2024.07.06 @ 01:18:27 Sessions 1 Manual Loads 0 Difficulty Rogue Special Mode None Game No. 5 Rogue 3 Adventurer 2 Explorer 0 Win Type - Total 0 Types 0/0/0/0/0/0/0/0/0 Lore% 6 Gallery% 7 Achievement% 9 Wizard Run 0 Options --------- Layout 1 ASCII 0 Keyboard 0 Movement Mouse Keybinds 0 Fullscreen 1 Font 32/SmallcapsGlow Map View 50x40 Zoom Use 0% Tactical HUD 0 Map Filters NONE Filters NONE Steam 1 RUN: 0f9f97e1-9982-4c84-b695-3dd8681bc465